{"text_format":"3","workbook":"xlsx","n_sheets":8,"sheets":["Instrucciones","Contactos regulares","Conocidos ocasionales","Clientes potenciales","Plan de redes T1","Plan de redes T2","Plan de redes T3","Plan de redes T4"],"not_rendered":{"defined_names":7},"read":"whole","date_system":"1900"}

{"sheet":"Instrucciones","index":0,"n_rows":17,"n_cols":5,"rows_kept":17,"merged":[[0,0,0,2],[1,1,1,6],[2,1,2,6],[3,1,3,6],[4,1,4,6],[5,1,5,6],[6,1,6,6],[7,1,7,6],[8,1,8,6],[9,1,9,6],[10,1,10,6],[11,1,11,6]]}
["Plantilla de seguimiento de contactos",null,null,"Instrucciones"]
[null,"1. Decide en qué categoría se encuentra tu contacto:"]
[null,"• Contactos regulares: personas con las que te gustaría mantenerte en contacto de forma muy regular"]
[null,"• Conocidos ocasionales: personas con las que te gustaría conectar unas pocas veces al año"]
[null,"• Clientes potenciales: personas o empresas que te gustaría tener cerca para comunicarse con ellas cuando llegue la oportunidad"]
[null,"2. Abre la pestaña de hoja de cálculo correspondiente."]
[null,"3. Escribe tu información (para crear una nueva línea en una celda, presione Alt+Entrar en Windows u Opción+Retorno en un equipo Mac)."]
[null,"Consulta aquí las nuevas instrucciones de línea para las aplicaciones móviles de Excel."]
[null,"4. En la columna Fecha de seguimiento, elimina la fórmula o los datos, escribe lo que desearía comunicarles \ny, después, presiona ENTRAR."]
[null,"5. La columna Fecha de seguimiento se mostrará en rojo cuando la fecha esté muy cerca, amarilla cuando se acerque y \nverde cuando quede mucho tiempo todavía."]
[null,"6. A medida que se acerque la fecha de seguimiento, el color cambiará en consecuencia."]
[null,"7. Una vez que te hayas comunicado con tu contacto, escribe SÍ en la columna ¿Listo?. Esto atenuará la fecha. "]
[null,"8. Si deseas comunicarte con ellos de nuevo, reemplaza SÍ por NO y escribe una nueva Fecha de seguimiento."]
[null,null,"Rojo","Amarillo","Verde"]
[null,"Contactos regulares","quedan 1-3 días","quedan 4-7 días","quedan 8-14 días o más"]
[null,"Conocidos ocasionales","quedan 1-7 días","quedan 8-45 días","quedan 46 y 90 días o más"]
[null,"Clientes potenciales","quedan 1-14 días","quedan 15 y 60 días","quedan 60-120 días o más"]

{"sheet":"Contactos regulares","index":1,"n_rows":7,"n_cols":8,"rows_kept":7,"merged":[[0,0,0,2]]}
["Plantilla de seguimiento de contactos",null,null,"Contactos regulares"]
[]
["Nombre","Compañía","Información de contacto","Dónde nos encontramos","Notas","Fecha de seguimiento","Completado","Notas de la conversación"]
["Garth Fort","Adventure Works","Jefe de proyecto\ngarth@adventure-works.com\n(234) 555-0134\nadventure-works.com\nlinkedin.com/in/garth-fort","Presentación comercial de 2010","Preguntar sobre su hija Sandy y sobre cómo va la reconstrucción. No le gustan los grupos grandes ni la comida picante.",{"$f":"TODAY()+8","v":"2021-07-20"},"NO"]
["Nombre","Nombre de la empresa","Puesto\nDirección de correo electrónico\nNúmero de teléfono\nSitio web\nVínculos de perfil social\n","Ubicación","Escribe las notas que quiera recordar sobre esta persona; dónde se la encontró, de qué hablaron, de qué quiere hablar la próxima vez que se encuentren, etc.",{"$f":"TODAY()-3","v":"2021-07-09"},"SÍ"]
["Nombre","Nombre de la empresa","Puesto\nDirección de correo electrónico\nNúmero de teléfono\nSitio web\nVínculos de perfil social\n","Ubicación","Escribe las notas que quiera recordar sobre esta persona; dónde se la encontró, de qué hablaron, de qué quiere hablar la próxima vez que se encuentren, etc.",{"$f":"TODAY()+-3","v":"2021-07-09"},"NO"]
["Nombre","Nombre de la empresa","Puesto\nDirección de correo electrónico\nNúmero de teléfono\nSitio web\nVínculos de perfil social\n","Ubicación","Escribe las notas que quiera recordar sobre esta persona; dónde se la encontró, de qué hablaron, de qué quiere hablar la próxima vez que se encuentren, etc.",{"$f":"TODAY()+6","v":"2021-07-18"},"NO"]

{"sheet":"Conocidos ocasionales","index":2,"n_rows":7,"n_cols":8,"rows_kept":7,"merged":[[0,0,0,2]]}
["Plantilla de seguimiento de contactos",null,null,"Conocidos ocasionales"]
[]
["Nombre","Compañía","Información de contacto","Dónde nos encontramos","Notas","Fecha de seguimiento","Completado","Notas de la conversación"]
["Garth Fort","Adventure Works","Administrador de recursos\ngarth@adventure-works.com\n(434) 555-0123\nwww.adventure-works.com\nlinkedin.com/in/garth-fort","Vacaciones en Vermont en 2016","Vendrá bien como contacto de contratación y para hacerle preguntas de marketing",{"$f":"TODAY()+90","v":"2021-10-10"},"NO"]
["Nombre","Nombre de la empresa","Puesto\nDirección de correo electrónico\nNúmero de teléfono\nSitio web\nVínculos de perfil social\n","Ubicación","Escribe las notas que quiera recordar sobre esta persona; dónde se la encontró, de qué hablaron, de qué quiere hablar la próxima vez que se encuentren, etc.",{"$f":"TODAY()-3","v":"2021-07-09"},"SÍ"]
["Nombre","Nombre de la empresa","Puesto\nDirección de correo electrónico\nNúmero de teléfono\nSitio web\nVínculos de perfil social\n","Ubicación","Escribe las notas que quiera recordar sobre esta persona; dónde se la encontró, de qué hablaron, de qué quiere hablar la próxima vez que se encuentren, etc.",{"$f":"TODAY()+-3","v":"2021-07-09"},"NO"]
["Nombre","Nombre de la empresa","Puesto\nDirección de correo electrónico\nNúmero de teléfono\nSitio web\nVínculos de perfil social\n","Ubicación","Escribe las notas que quiera recordar sobre esta persona; dónde se la encontró, de qué hablaron, de qué quiere hablar la próxima vez que se encuentren, etc.",{"$f":"TODAY()+40","v":"2021-08-21"},"NO"]

{"sheet":"Clientes potenciales","index":3,"n_rows":7,"n_cols":8,"rows_kept":7,"merged":[[0,0,0,2]]}
["Plantilla de seguimiento de contactos",null,null,"Clientes potenciales"]
[]
["Nombre","Compañía","Información de contacto","Dónde nos encontramos","Notas","Fecha de seguimiento","Completado","Notas de la conversación"]
["Garth Fort","Autónomo","Diseñador\nalguien@example.com\n425-555-0123\nexample.com\nlinkedin.com/in/garth-fort","Graduación de su hijo en 2016","Calificaciones recientes: grandes aptitudes. Puede ser útil para clientes futuros.",{"$f":"TODAY()+89","v":"2021-10-09"},"NO"]
["Nombre","Nombre de la empresa","Puesto\nDirección de correo electrónico\nNúmero de teléfono\nSitio web\nVínculos de perfil social\n","Ubicación","Escribe las notas que quiera recordar sobre esta persona; dónde se la encontró, de qué hablaron, de qué quiere hablar la próxima vez que se encuentren, etc.",{"$f":"TODAY()-3","v":"2021-07-09"},"SÍ"]
["Nombre","Nombre de la empresa","Puesto\nDirección de correo electrónico\nNúmero de teléfono\nSitio web\nVínculos de perfil social\n","Ubicación","Escribe las notas que quiera recordar sobre esta persona; dónde se la encontró, de qué hablaron, de qué quiere hablar la próxima vez que se encuentren, etc.",{"$f":"TODAY()+-3","v":"2021-07-09"},"NO"]
["Nombre","Nombre de la empresa","Puesto\nDirección de correo electrónico\nNúmero de teléfono\nSitio web\nVínculos de perfil social\n","Ubicación","Escribe las notas que quiera recordar sobre esta persona; dónde se la encontró, de qué hablaron, de qué quiere hablar la próxima vez que se encuentren, etc.",{"$f":"TODAY()+30","v":"2021-08-11"},"NO"]

{"sheet":"Plan de redes T1","index":4,"n_rows":20,"n_cols":6,"rows_kept":20,"merged":[[0,0,0,3],[2,0,2,3],[4,0,4,3],[14,5,17,5],[18,0,18,3]]}
["Plan de expansión de red de contactos"]
["Instrucciones"]
["Describe cómo planeas expandir tu red este trimestre (p. ej., hacer más llamadas telefónicas, viajar más, etc.). Después, cada vez que logres un nuevo contacto, cambia el número de Contactos reales realizados que debes seguir y ve cómo te acercas a tu objetivo."]
[]
["Cómo tengo previsto expandir mi red este trimestre"]
["1. Realizar más llamadas telefónicas"]
["2. Viajar más"]
[]
[]
[]
[]
[]
[]
["Objetivo trimestral de contactos","Fecha límite","Contactos trimestrales reales obtenidos","Resultados"]
[20,{"$f":"TODAY()","v":"2021-07-12"},12,{"$f":"IF(tblObjetivos[[#This Row],[Objetivo trimestral de contactos]]>0,tblObjetivos[[#This Row],[Contactos trimestrales reales obtenidos]]/tblObjetivos[[#This Row],[Objetivo trimestral de contactos]],\"\")","v":{"v":0.6,"d":"60%"}},null,"0 % - 25 %\n26 % - 50 %\n51 % - 75 %\n76 % - 100 %\n\nCambios de color basados en el porcentaje alcanzado"]
[{"$nulls":3},{"$f":"IF(tblObjetivos[[#This Row],[Objetivo trimestral de contactos]]>0,tblObjetivos[[#This Row],[Contactos trimestrales reales obtenidos]]/tblObjetivos[[#This Row],[Objetivo trimestral de contactos]],\"\")","v":""}]
[{"$nulls":3},{"$f":"IF(tblObjetivos[[#This Row],[Objetivo trimestral de contactos]]>0,tblObjetivos[[#This Row],[Contactos trimestrales reales obtenidos]]/tblObjetivos[[#This Row],[Objetivo trimestral de contactos]],\"\")","v":""}]
[]
["Reflexión sobre el resultado/Notas para mejorar"]
["Te has acercado. Probar a llamar alrededor de la hora del almuerzo."]

{"sheet":"Plan de redes T2","index":5,"n_rows":20,"n_cols":6,"rows_kept":20,"merged":[[0,0,0,3],[2,0,2,3],[4,0,4,3],[14,5,17,5],[18,0,18,3]]}
["Plan de expansión de red de contactos"]
["Instrucciones"]
["Describe cómo planeas expandir tu red este trimestre (p. ej., hacer más llamadas telefónicas, viajar más, etc.). Después, cada vez que logres un nuevo contacto, cambia el número de Contactos reales realizados que debes seguir y ve cómo te acercas a tu objetivo."]
[]
["Cómo tengo previsto expandir mi red este trimestre"]
["1. Realizar más llamadas telefónicas"]
["2. Viajar más"]
[]
[]
[]
[]
[]
[]
["Objetivo trimestral de contactos","Fecha límite","Contactos trimestrales reales obtenidos","Resultados"]
[20,{"$f":"TODAY()","v":"2021-07-12"},12,{"$f":"IF(tblObjetivos3[[#This Row],[Objetivo trimestral de contactos]]>0,tblObjetivos3[[#This Row],[Contactos trimestrales reales obtenidos]]/tblObjetivos3[[#This Row],[Objetivo trimestral de contactos]],\"\")","v":{"v":0.6,"d":"60%"}},null,"0 % - 25 %\n26 % - 50 %\n51 % - 75 %\n76 % - 100 %\n\nCambios de color basados en el porcentaje alcanzado"]
[{"$nulls":3},{"$f":"IF(tblObjetivos3[[#This Row],[Objetivo trimestral de contactos]]>0,tblObjetivos3[[#This Row],[Contactos trimestrales reales obtenidos]]/tblObjetivos3[[#This Row],[Objetivo trimestral de contactos]],\"\")","v":""}]
[{"$nulls":3},{"$f":"IF(tblObjetivos3[[#This Row],[Objetivo trimestral de contactos]]>0,tblObjetivos3[[#This Row],[Contactos trimestrales reales obtenidos]]/tblObjetivos3[[#This Row],[Objetivo trimestral de contactos]],\"\")","v":""}]
[]
["Reflexión sobre el resultado/Notas para mejorar"]
["Te has acercado. Probar a llamar alrededor de la hora del almuerzo."]

{"sheet":"Plan de redes T3","index":6,"n_rows":20,"n_cols":6,"rows_kept":20,"merged":[[0,0,0,3],[2,0,2,3],[4,0,4,3],[14,5,17,5],[18,0,18,3]]}
["Plan de expansión de red de contactos"]
["Instrucciones"]
["Describe cómo planeas expandir tu red este trimestre (p. ej., hacer más llamadas telefónicas, viajar más, etc.). Después, cada vez que logres un nuevo contacto, cambia el número de Contactos reales realizados que debes seguir y ve cómo te acercas a tu objetivo."]
[]
["Cómo tengo previsto expandir mi red este trimestre"]
["1. Realizar más llamadas telefónicas"]
["2. Viajar más"]
[]
[]
[]
[]
[]
[]
["Objetivo trimestral de contactos","Fecha límite","Contactos trimestrales reales obtenidos","Resultados"]
[20,{"$f":"TODAY()","v":"2021-07-12"},12,{"$f":"IF(tblObjetivos34[[#This Row],[Objetivo trimestral de contactos]]>0,tblObjetivos34[[#This Row],[Contactos trimestrales reales obtenidos]]/tblObjetivos34[[#This Row],[Objetivo trimestral de contactos]],\"\")","v":{"v":0.6,"d":"60%"}},null,"0 % - 25 %\n26 % - 50 %\n51 % - 75 %\n76 % - 100 %\n\nCambios de color basados en el porcentaje alcanzado"]
[{"$nulls":3},{"$f":"IF(tblObjetivos34[[#This Row],[Objetivo trimestral de contactos]]>0,tblObjetivos34[[#This Row],[Contactos trimestrales reales obtenidos]]/tblObjetivos34[[#This Row],[Objetivo trimestral de contactos]],\"\")","v":""}]
[{"$nulls":3},{"$f":"IF(tblObjetivos34[[#This Row],[Objetivo trimestral de contactos]]>0,tblObjetivos34[[#This Row],[Contactos trimestrales reales obtenidos]]/tblObjetivos34[[#This Row],[Objetivo trimestral de contactos]],\"\")","v":""}]
[]
["Reflexión sobre el resultado/Notas para mejorar"]
["Te has acercado. Probar a llamar alrededor de la hora del almuerzo."]

{"sheet":"Plan de redes T4","index":7,"n_rows":20,"n_cols":6,"rows_kept":20,"merged":[[0,0,0,3],[2,0,2,3],[4,0,4,3],[14,5,17,5],[18,0,18,3]]}
["Plan de expansión de red de contactos"]
["Instrucciones"]
["Describe cómo planeas expandir tu red este trimestre (p. ej., hacer más llamadas telefónicas, viajar más, etc.). Después, cada vez que logres un nuevo contacto, cambia el número de Contactos reales realizados que debes seguir y ve cómo te acercas a tu objetivo."]
[]
["Cómo tengo previsto expandir mi red este trimestre"]
["1. Realizar más llamadas telefónicas"]
["2. Viajar más"]
[]
[]
[]
[]
[]
[]
["Objetivo trimestral de contactos","Fecha límite","Contactos trimestrales reales obtenidos","Resultados"]
[20,{"$f":"TODAY()","v":"2021-07-12"},12,{"$f":"IF(tblObjetivos348[[#This Row],[Objetivo trimestral de contactos]]>0,tblObjetivos348[[#This Row],[Contactos trimestrales reales obtenidos]]/tblObjetivos348[[#This Row],[Objetivo trimestral de contactos]],\"\")","v":{"v":0.6,"d":"60%"}},null,"0 % - 25 %\n26 % - 50 %\n51 % - 75 %\n76 % - 100 %\n\nCambios de color basados en el porcentaje alcanzado"]
[{"$nulls":3},{"$f":"IF(tblObjetivos348[[#This Row],[Objetivo trimestral de contactos]]>0,tblObjetivos348[[#This Row],[Contactos trimestrales reales obtenidos]]/tblObjetivos348[[#This Row],[Objetivo trimestral de contactos]],\"\")","v":""}]
[{"$nulls":3},{"$f":"IF(tblObjetivos348[[#This Row],[Objetivo trimestral de contactos]]>0,tblObjetivos348[[#This Row],[Contactos trimestrales reales obtenidos]]/tblObjetivos348[[#This Row],[Objetivo trimestral de contactos]],\"\")","v":""}]
[]
["Reflexión sobre el resultado/Notas para mejorar"]
["Te has acercado. Probar a llamar alrededor de la hora del almuerzo."]